bitfinex-derivatives/quotes_BTCF0:USTF0_20251230
["timestamp","ask_amount","ask_price","bid_price","bid_amount"]
[1767064061655,0.02595473,87089.0,87081.0,0.05756]
[1767064061955,0.0114969,87091.0,87081.0,0.05756]
[1767064062156,0.0114972,87089.0,87081.0,0.05756]
[1767064062457,0.0114975,87087.0,87082.0,0.05756]
[1767064063766,0.0114975,87087.0,87079.0,0.05756]
[1767064064360,0.011497,87091.0,87079.0,0.05756]
[1767064064562,0.02595401,87090.0,87079.0,0.05756]
[1767064064760,0.02595401,87089.0,87079.0,0.05756]
[1767064064956,0.011497,87091.0,87079.0,0.05756]
[1767064065152,0.02595399,87090.0,87079.0,0.05756]
[1767064065353,0.02595399,87089.0,87079.0,0.05756]
[1767064065661,0.011497,87091.0,87079.0,0.05756]
[1767064065851,0.0259543,87090.0,87079.0,0.05756]
[1767064066053,0.0259543,87089.0,87079.0,0.05756]
[1767064066357,0.011497,87091.0,87079.0,0.05756]
[1767064066558,0.02595607,87090.0,87079.0,0.05756]
[1767064066865,0.02595607,87089.0,87079.0,0.05756]
[1767064067056,0.011497,87091.0,87079.0,0.05756]
[1767064069160,0.011497,87091.0,87075.0,0.0001723]
[1767064069365,0.011497,87091.0,87075.0,0.0577323]
[1767064070265,0.0114974,87088.0,87075.0,0.0001723]
[1767064070564,0.0114974,87088.0,87076.0,0.05756]
[1767064071152,0.0114977,87085.0,87075.0,0.0001723]
[1767064073673,0.0114983,87081.0,87072.0,0.05756]
[1767064074369,0.0114986,87078.0,87058.0,0.0115012]
[1767064074669,0.0001723,87077.0,87059.0,0.1554523]
[1767064076769,0.0114976,87086.0,87060.0,0.0115009]
[1767064076970,0.02613663,87085.0,87063.0,0.0115005]
[1767064077173,0.0114971,87090.0,87063.0,0.0115005]
[1767064077365,0.02613676,87089.0,87063.0,0.0115005]
[1767064077565,0.02613676,87088.0,87063.0,0.0115005]
[1767064077864,0.02613676,87087.0,87063.0,0.0115005]
[1767064078070,0.02613676,87086.0,87063.0,0.0115005]
[1767064078368,0.02613676,87085.0,87063.0,0.0115005]
[1767064078568,0.0114971,87090.0,87063.0,0.0115005]
[1767064078770,0.02613586,87089.0,87063.0,0.0115005]
[1767064078972,0.02613586,87088.0,87063.0,0.0115005]
[1767064079173,0.09772,87099.0,87059.0,0.1554523]
[1767064079476,0.0114964,87095.0,87068.0,0.0114999]
[1767064079676,0.0114964,87095.0,87069.0,0.15528]
[1767064080373,0.0114964,87095.0,87070.0,0.0114997]
[1767064080674,0.1092159,87099.0,87070.0,0.0114997]
[1767064081259,0.09772,87099.0,87072.0,0.0114993]
[1767064081462,0.09772,87099.0,87077.0,0.0001723]
[1767064081663,0.09772,87099.0,87078.0,0.05756]
[1767064081868,0.09772,87099.0,87079.0,0.09772]
[1767064085774,0.011496,87098.0,87079.0,0.09772]
[1767064087774,0.09772,87099.0,87079.0,0.09772]
[1767064088278,0.09772,87106.0,87079.0,0.09772]
[1767064088476,0.15528,87109.0,87082.0,0.0114981]
[1767064088971,0.0114947,87108.0,87082.0,0.0114981]
[1767064089180,0.0114952,87105.0,87079.0,0.09772]
[1767064090178,0.15528,87109.0,87079.0,0.09772]
[1767064091268,0.0114954,87103.0,87079.0,0.09772]
[1767064092278,0.0114949,87107.0,87080.0,0.0114983]
[1767064092477,0.0114951,87105.0,87080.0,0.0114983]
[1767064092774,0.02599837,87104.0,87080.0,0.0114983]
[1767064093174,0.02599837,87104.0,87079.0,0.09772]
[1767064093478,0.0114954,87103.0,87079.0,0.09772]
[1767064098184,0.02598963,87102.0,87079.0,0.09772]
[1767064098383,0.0114954,87103.0,87079.0,0.09772]
[1767064098685,0.0259887,87102.0,87079.0,0.09772]
[1767064098884,0.0114954,87103.0,87079.0,0.09772]
[1767064099085,0.02598872,87102.0,87079.0,0.09772]
[1767064099281,0.0114954,87103.0,87079.0,0.09772]
[1767064099487,0.15528,87109.0,87079.0,0.09772]
[1767064099488,0.02598812,87102.0,87079.0,0.1092184]
[1767064099683,0.0114952,87104.0,87079.0,0.1092184]
[1767064099886,0.0259881,87103.0,87079.0,0.1092184]
[1767064100076,0.0259881,87102.0,87079.0,0.1092184]
[1767064100277,0.0114952,87104.0,87079.0,0.1092184]
[1767064100576,0.02598769,87103.0,87079.0,0.1092184]
[1767064100775,0.02598769,87102.0,87079.0,0.1092184]
[1767064101074,0.0114952,87104.0,87079.0,0.1092184]
[1767064101276,0.02598768,87103.0,87079.0,0.1092184]
[1767064101583,0.02598768,87102.0,87079.0,0.1092184]
[1767064101777,0.0114952,87104.0,87079.0,0.1092184]
[1767064101975,0.02598837,87103.0,87079.0,0.1092184]
[1767064102185,0.02598837,87102.0,87079.0,0.1092184]
[1767064102485,0.0114952,87104.0,87079.0,0.1092184]
[1767064102787,0.02598947,87103.0,87079.0,0.1092184]
[1767064102971,0.02598947,87102.0,87079.0,0.1092184]
[1767064103176,0.0114952,87104.0,87079.0,0.1092184]
[1767064103385,0.0259895,87103.0,87079.0,0.1092184]
[1767064103586,0.0259895,87102.0,87079.0,0.1092184]
[1767064103785,0.0114952,87104.0,87079.0,0.1092184]
[1767064103986,0.0259909,87103.0,87079.0,0.1092184]
[1767064104187,0.0259909,87102.0,87079.0,0.1092184]
[1767064104388,0.0114952,87104.0,87079.0,0.1092184]
[1767064104591,0.02599288,87103.0,87079.0,0.1092184]
[1767064104896,0.02599288,87102.0,87079.0,0.1092184]
[1767064105186,0.0114952,87104.0,87079.0,0.1092184]
[1767064105390,0.02599282,87103.0,87079.0,0.1092184]
[1767064105579,0.02599282,87102.0,87079.0,0.1092184]
[1767064105779,0.02599282,87101.0,87079.0,0.1092184]
[1767064106089,0.0114952,87104.0,87079.0,0.1092184]
[1767064106388,0.02599549,87103.0,87079.0,0.1092184]
[1767064106585,0.02599549,87102.0,87079.0,0.1092184]
[1767064106786,0.02599549,87101.0,87079.0,0.1092184]
[1767064106987,0.0114952,87104.0,87079.0,0.1092184]
[1767064107194,0.02575357,87103.0,87079.0,0.1092184]
[1767064107383,0.02575357,87102.0,87079.0,0.1092184]
[1767064107682,0.02575357,87101.0,87079.0,0.1092184]
[1767064107875,0.02575357,87100.0,87082.0,0.0114981]
[1767064108077,0.02575357,87099.0,87082.0,0.0114981]
[1767064108284,0.02575357,87098.0,87082.0,0.0114981]
[1767064108492,0.0114948,87107.0,87082.0,0.0114981]
[1767064108684,0.0114951,87105.0,87082.0,0.0114981]
[1767064108985,0.02576169,87104.0,87082.0,0.0114981]
[1767064109182,0.02576169,87103.0,87082.0,0.0114981]
[1767064109384,0.02576169,87102.0,87082.0,0.0114981]
[1767064109583,0.02576169,87101.0,87082.0,0.0114981]
[1767064109783,0.02576169,87100.0,87082.0,0.0114981]
[1767064109988,0.02576169,87099.0,87082.0,0.0114981]
[1767064110184,0.02576169,87098.0,87082.0,0.0114981]
[1767064110482,0.0114951,87105.0,87082.0,0.0114981]
[1767064110683,0.02575549,87104.0,87082.0,0.0114981]
[1767064110890,0.02575549,87103.0,87082.0,0.0114981]
[1767064111090,0.02575549,87102.0,87082.0,0.0114981]
[1767064111290,0.02575549,87101.0,87082.0,0.0114981]
[1767064111483,0.02575549,87100.0,87082.0,0.0114981]
[1767064111685,0.02575549,87099.0,87082.0,0.0114981]
[1767064111990,0.02575549,87098.0,87082.0,0.0114981]
[1767064112190,0.02575549,87097.0,87079.0,0.09772]
[1767064112378,0.0114951,87105.0,87079.0,0.09772]
[1767064112582,0.02575819,87104.0,87080.0,0.0114982]
[1767064112781,0.02575819,87103.0,87080.0,0.0114982]
[1767064112991,0.02575819,87102.0,87080.0,0.0114982]
[1767064113191,0.02575819,87101.0,87080.0,0.0114982]
[1767064113381,0.02575819,87100.0,87080.0,0.0114982]
[1767064113582,0.02575819,87099.0,87080.0,0.0114982]
[1767064113792,0.02575819,87098.0,87080.0,0.0114982]
[1767064113989,0.0114951,87105.0,87080.0,0.0114982]
[1767064114189,0.0257604,87104.0,87083.0,0.0114979]
[1767064114389,0.0257604,87103.0,87083.0,0.0114979]
[1767064114588,0.0257604,87102.0,87083.0,0.0114979]
[1767064114789,0.0257604,87101.0,87083.0,0.0114979]
[1767064114989,0.0257604,87100.0,87083.0,0.0114979]
[1767064115193,0.0257604,87099.0,87083.0,0.0114979]
[1767064115392,0.02576564,87098.0,87083.0,0.0114979]
[1767064115584,0.1667746,87109.0,87083.0,0.0114979]
[1767064115786,0.02576564,87108.0,87083.0,0.0114979]
[1767064115984,0.02576564,87107.0,87083.0,0.0114979]
[1767064116191,0.1667746,87109.0,87083.0,0.0114979]
[1767064116388,0.02576572,87108.0,87083.0,0.0114979]
[1767064117486,0.02576572,87108.0,87086.0,0.0114975]
[1767064117690,0.02576572,87108.0,87087.0,0.05752]
[1767064118898,0.0114952,87104.0,87088.0,0.05752]
[1767064119088,0.02576572,87103.0,87088.0,0.09261]
[1767064119396,0.0114955,87102.0,87087.0,0.05752]
[1767064120394,0.0114955,87102.0,87078.0,0.0114985]
[1767064120697,0.02577479,87101.0,87079.0,0.1552]
[1767064120891,0.0114955,87102.0,87079.0,0.1552]
[1767064121092,0.02577479,87101.0,87079.0,0.1552]
[1767064121294,0.0114955,87102.0,87079.0,0.1552]
[1767064121486,0.02577445,87101.0,87079.0,0.1552]
[1767064121687,0.0114955,87102.0,87079.0,0.1552]
[1767064121887,0.02577443,87101.0,87079.0,0.1552]
[1767064122087,0.0114955,87102.0,87079.0,0.1552]
[1767064122387,0.02577443,87101.0,87079.0,0.1552]
[1767064122588,0.0114955,87102.0,87079.0,0.1552]
[1767064122787,0.02577417,87101.0,87079.0,0.1552]
[1767064122989,0.0114955,87102.0,87079.0,0.1552]
[1767064123292,0.0114957,87100.0,87077.0,0.0001723]
[1767064123497,0.0114972,87089.0,87077.0,0.0001723]
[1767064124194,0.0114967,87093.0,87077.0,0.0001723]
[1767064124498,0.0114975,87087.0,87072.0,0.05752]
[1767064128698,0.0114982,87081.0,87067.0,0.05752]
[1767064128897,0.0114982,87081.0,87065.0,0.05752]
[1767064129096,0.0114977,87085.0,87065.0,0.05752]
[1767064129796,0.0114977,87085.0,87066.0,0.0001723]
[1767064130701,0.0114982,87082.0,87066.0,0.0001723]
[1767064132697,0.0114978,87084.0,87066.0,0.0001723]
[1767064132903,0.09772,87086.0,87066.0,0.0001723]
[1767064135207,0.0114983,87081.0,87066.0,0.0001723]
[1767064136106,0.0114985,87079.0,87066.0,0.0001723]
[1767064136407,0.15694981,87080.0,87066.0,0.0001723]
[1767064140516,0.21450981,87080.0,87066.0,0.0001723]
[1767064141515,0.05756,87080.0,87066.0,0.0001723]
[1767064141711,0.21450981,87080.0,87066.0,0.0001723]
[1767064152922,0.05756,87080.0,87066.0,0.0001723]
[1767064154822,0.21450981,87080.0,87066.0,0.0001723]
[1767064157231,0.05756,87080.0,87066.0,0.0001723]
[1767064157829,0.09772,87086.0,87066.0,0.0001723]
[1767064157830,0.15528,87086.0,87070.0,0.15694981]
[1767064158129,0.15528,87086.0,87067.0,0.0115]
[1767064162328,0.15528,87086.0,87066.0,0.0001723]
[1767064164125,0.15694981,87080.0,87066.0,0.0001723]
[1767064165331,0.0114989,87076.0,87065.0,0.05756]
[1767064165530,0.15694981,87075.0,87064.0,0.05756]
[1767064165730,0.15694981,87074.0,87060.0,0.05756]
[1767064165929,0.15694981,87070.0,87060.0,0.05756]
[1767064166229,0.0116715,87074.0,87060.0,0.05756]
[1767064166433,0.0001723,87074.0,87060.0,0.05756]
[1767064170825,0.0114993,87073.0,87060.0,0.05756]
[1767064173831,0.0114993,87073.0,87056.0,0.0001723]
[1767064174032,0.0114993,87073.0,87057.0,0.15528]
[1767064177825,0.0114993,87073.0,87058.0,0.05756]
[1767064178635,0.0114993,87073.0,87056.0,0.0001723]
[1767064178838,0.0115001,87067.0,87056.0,0.0001723]
[1767064179840,0.15694981,87070.0,87056.0,0.0001723]
[1767064180433,0.0114998,87069.0,87056.0,0.0001723]
[1767064180642,0.0115007,87063.0,87048.0,0.05756]
[1767064181639,0.05756,87065.0,87048.0,0.05756]
[1767064182736,0.0115005,87064.0,87048.0,0.05756]
[1767064182941,0.0115005,87064.0,87047.0,0.0001723]
[1767064183843,0.15694981,87060.0,87047.0,0.0001723]
[1767064185348,0.0115005,87064.0,87047.0,0.0001723]
[1767064186641,0.15694981,87060.0,87046.0,0.05756]
[1767064186841,0.15694981,87060.0,87043.0,0.15528]
[1767064187646,0.15694981,87060.0,87043.0,0.1554523]
[1767064188552,0.09772,87064.0,87043.0,0.1554523]
[1767064192057,0.09772,87064.0,87044.0,0.0115031]
[1767064197257,0.09772,87064.0,87048.0,0.0115025]
[1767064197455,0.09772,87064.0,87049.0,0.05756]
[1767064197650,0.09772,87064.0,87050.0,0.0115022]
[1767064198353,0.09772,87064.0,87049.0,0.05756]
[1767064208965,0.09772,87064.0,87049.0,0.0690624]
[1767064211175,0.05756,87065.0,87049.0,0.05756]
[1767064218272,0.05756,87069.0,87049.0,0.05756]
[1767064218473,0.02596439,87068.0,87049.0,0.05756]
[1767064218672,0.02596439,87067.0,87049.0,0.05756]
[1767064218873,0.02596439,87066.0,87049.0,0.05756]
[1767064219074,0.05756,87069.0,87049.0,0.05756]
[1767064219273,0.02596439,87068.0,87049.0,0.05756]
[1767064219480,0.02596439,87067.0,87049.0,0.05756]
[1767064219676,0.02596439,87066.0,87049.0,0.05756]
[1767064219876,0.05756,87069.0,87049.0,0.05756]
[1767064220178,0.02596428,87068.0,87049.0,0.05756]
[1767064220377,0.02596428,87067.0,87049.0,0.05756]
[1767064220576,0.02596428,87066.0,87049.0,0.05756]
[1767064220780,0.05756,87069.0,87049.0,0.05756]
[1767064220981,0.02596474,87068.0,87049.0,0.05756]
[1767064221175,0.02596474,87067.0,87049.0,0.05756]
[1767064221374,0.02596474,87066.0,87049.0,0.05756]
[1767064221574,0.05756,87069.0,87049.0,0.05756]
[1767064221782,0.02596569,87068.0,87049.0,0.05756]
[1767064221981,0.02596569,87067.0,87049.0,0.05756]
[1767064222183,0.02596569,87066.0,87049.0,0.05756]
[1767064222480,0.05756,87069.0,87049.0,0.0690624]
[1767064222681,0.02596557,87068.0,87049.0,0.0690624]
[1767064222874,0.02596557,87067.0,87049.0,0.05756]
[1767064223074,0.02596557,87066.0,87049.0,0.05756]
[1767064223269,0.05756,87069.0,87049.0,0.05756]
[1767064223580,0.02596576,87068.0,87049.0,0.05756]
[1767064223785,0.02596576,87067.0,87049.0,0.05756]
[1767064223986,0.02596576,87066.0,87049.0,0.05756]
[1767064224185,0.05756,87069.0,87049.0,0.05756]
[1767064224386,0.025959,87068.0,87049.0,0.05756]
[1767064224577,0.025959,87067.0,87049.0,0.05756]
[1767064224876,0.025959,87066.0,87049.0,0.05756]
[1767064225076,0.05756,87069.0,87049.0,0.05756]
[1767064225378,0.02595807,87068.0,87049.0,0.05756]
[1767064225577,0.02595807,87067.0,87049.0,0.05756]
[1767064225778,0.02595807,87066.0,87049.0,0.05756]
[1767064226086,0.05756,87069.0,87049.0,0.05756]
[1767064226381,0.02595766,87068.0,87049.0,0.05756]
[1767064226582,0.02595766,87067.0,87049.0,0.05756]
[1767064226783,0.02595766,87066.0,87049.0,0.05756]
[1767064226978,0.05756,87069.0,87049.0,0.05756]
[1767064227184,0.02594943,87068.0,87049.0,0.05756]
[1767064227384,0.02594943,87067.0,87049.0,0.05756]
[1767064227684,0.02594943,87066.0,87049.0,0.05756]
[1767064227887,0.05756,87069.0,87049.0,0.05756]
[1767064228088,0.02594989,87068.0,87049.0,0.05756]
[1767064228289,0.02594989,87067.0,87049.0,0.05756]
[1767064228487,0.02594989,87066.0,87049.0,0.05756]
[1767064228687,0.05756,87069.0,87049.0,0.05756]
[1767064228887,0.02594982,87068.0,87049.0,0.05756]
[1767064229186,0.02594982,87067.0,87049.0,0.05756]
[1767064229386,0.02594982,87066.0,87049.0,0.05756]
[1767064229587,0.05756,87069.0,87049.0,0.05756]
[1767064229787,0.02594989,87068.0,87049.0,0.05756]
[1767064230090,0.05756,87069.0,87049.0,0.05756]
[1767064230091,0.02594989,87067.0,87049.0,0.05756]
[1767064230290,0.02594989,87066.0,87049.0,0.05756]
[1767064230494,0.05756,87069.0,87049.0,0.05756]
[1767064230787,0.02595028,87068.0,87049.0,0.05756]
[1767064230983,0.02595028,87067.0,87049.0,0.05756]
[1767064231184,0.02595028,87066.0,87049.0,0.05756]
[1767064231484,0.05756,87069.0,87049.0,0.05756]
[1767064231686,0.02595163,87068.0,87049.0,0.05756]
[1767064231887,0.02595163,87067.0,87049.0,0.05756]
[1767064232192,0.02595163,87066.0,87049.0,0.05756]
[1767064232395,0.05756,87069.0,87049.0,0.05756]
[1767064232595,0.02595177,87068.0,87049.0,0.05756]
[1767064232895,0.02595177,87067.0,87049.0,0.05756]
[1767064233094,0.02595177,87066.0,87049.0,0.05756]
[1767064233284,0.05756,87069.0,87049.0,0.05756]
[1767064233484,0.05756,87069.0,87044.0,0.011503]
[1767064233485,0.02595188,87068.0,87044.0,0.011503]
[1767064233784,0.02595188,87067.0,87046.0,0.0115028]
[1767064233986,0.02595188,87066.0,87046.0,0.0115028]
[1767064234189,0.05756,87069.0,87047.0,0.05756]
[1767064234488,0.02595193,87068.0,87047.0,0.05756]
[1767064234686,0.02595193,87067.0,87047.0,0.05756]
[1767064234994,0.02595193,87066.0,87047.0,0.05756]
[1767064235197,0.05756,87069.0,87047.0,0.05756]
[1767064235393,0.02595197,87068.0,87047.0,0.05756]
[1767064235696,0.02595197,87067.0,87047.0,0.05756]
[1767064235997,0.02595197,87066.0,87047.0,0.05756]
[1767064236200,0.05756,87069.0,87047.0,0.05756]
[1767064236393,0.02595192,87068.0,87047.0,0.05756]
[1767064236695,0.02595192,87067.0,87047.0,0.05756]
[1767064236990,0.02595192,87066.0,87043.0,0.0001723]
[1767064237195,0.05756,87069.0,87045.0,0.0115029]
[1767064237396,0.02595193,87068.0,87045.0,0.0115029]
[1767064237597,0.02595193,87067.0,87050.0,0.0115023]
[1767064237900,0.05756,87069.0,87044.0,0.15528]
[1767064238087,0.02595229,87068.0,87044.0,0.15528]
[1767064238288,0.05756,87069.0,87044.0,0.15528]
[1767064238488,0.02595232,87068.0,87044.0,0.15528]
[1767064238702,0.05756,87069.0,87044.0,0.15528]
[1767064238890,0.02595234,87068.0,87044.0,0.15528]
[1767064239195,0.05756,87069.0,87048.0,0.0115026]
[1767064239396,0.02595241,87068.0,87048.0,0.0115026]
[1767064239596,0.05756,87069.0,87048.0,0.0115026]
[1767064239798,0.02595241,87068.0,87048.0,0.0115026]
[1767064240096,0.05756,87069.0,87048.0,0.0115026]
[1767064240288,0.02595241,87068.0,87048.0,0.0115026]
[1767064240488,0.05756,87069.0,87048.0,0.0115026]
[1767064240784,0.02595244,87068.0,87048.0,0.0115026]
[1767064240981,0.05756,87069.0,87047.0,0.0115027]
[1767064241183,0.02595243,87068.0,87047.0,0.0115027]
[1767064241389,0.05756,87069.0,87047.0,0.0115027]
[1767064241590,0.02595235,87068.0,87047.0,0.0115027]
[1767064241798,0.05756,87069.0,87047.0,0.0115027]
[1767064242095,0.02595236,87068.0,87047.0,0.0115027]
[1767064242295,0.05756,87069.0,87047.0,0.0115027]
[1767064242495,0.02595237,87068.0,87047.0,0.0115027]
[1767064242696,0.05756,87069.0,87047.0,0.0115027]
[1767064242894,0.02595237,87068.0,87047.0,0.0115027]
[1767064243095,0.05756,87069.0,87047.0,0.0115027]
[1767064243296,0.02595237,87068.0,87047.0,0.0115027]
[1767064243592,0.15528,87069.0,87047.0,0.0115027]
[1767064243799,0.02595236,87068.0,87047.0,0.0115027]
[1767064243988,0.15528,87069.0,87047.0,0.0115027]
[1767064244190,0.02595237,87068.0,87047.0,0.0115027]
[1767064244390,0.15528,87069.0,87047.0,0.0115027]
[1767064244594,0.02595242,87068.0,87047.0,0.0115027]
[1767064244794,0.15528,87069.0,87044.0,0.15528]
[1767064244994,0.02595239,87068.0,87044.0,0.15528]
[1767064245197,0.15528,87069.0,87045.0,0.0115029]
[1767064245397,0.02595204,87068.0,87045.0,0.0115029]
[1767064245598,0.15528,87069.0,87045.0,0.0115029]
[1767064245800,0.02595214,87068.0,87045.0,0.0115029]
[1767064246094,0.15528,87069.0,87045.0,0.0115029]
[1767064246298,0.15528,87069.0,87007.0,0.09772]
[1767064246299,0.15704496,87060.0,87007.0,0.09772]
[1767064246484,0.15704496,87060.0,87009.0,0.0115076]
[1767064246485,0.15704496,87050.0,87009.0,0.0115076]
[1767064246686,0.0115042,87036.0,87004.0,0.0690683]
[1767064246894,0.0115045,87034.0,87004.0,0.0690683]
[1767064247090,0.0115047,87032.0,87004.0,0.05756]
[1767064247289,0.0001723,87029.0,87004.0,0.05756]
[1767064247489,0.05756,87028.0,87004.0,0.05756]
[1767064248498,0.15718786,87020.0,87004.0,0.05756]
[1767064249086,0.25490786,87020.0,87001.0,0.0115087]
[1767064249289,0.25490786,87020.0,87000.0,5.013]
[1767064249489,0.25490786,87020.0,87000.0,4.67414]
[1767064250284,0.14333837,87020.0,87000.0,3.38934291]
[1767064250486,0.15718786,87010.0,87000.0,3.37940073]
[1767064250686,0.1554485,87009.0,87000.0,1.75492761]
[1767064251095,8.85e-05,87009.0,87000.0,1.75492761]
[1767064251396,0.09776,87020.0,87000.0,1.75492761]
[1767064251598,0.0576,87019.0,87010.0,0.15718786]
[1767064251898,0.0576,87019.0,87003.0,0.0115084]
[1767064252298,0.05765056,87018.0,87008.0,0.0115078]
[1767064252691,0.0001723,87029.0,87008.0,0.16869566]
[1767064252995,0.0001723,87029.0,87010.0,0.15718786]
[1767064252996,0.04912,87028.0,87010.0,0.15718786]
[1767064254304,0.04912,87028.0,87011.0,0.0576]
[1767064254692,0.04912,87028.0,87005.0,0.0115082]
[1767064254901,0.04912,87028.0,87010.0,0.15718786]
[1767064258306,0.15718786,87020.0,87000.0,1.75492761]
[1767064258495,0.0979323,87029.0,87000.0,1.75492761]
[1767064258496,0.1554,87019.0,87000.0,1.91211547]
[1767064258688,0.09776,87018.0,87000.0,1.91211547]
[1767064260094,0.0001723,87029.0,87001.0,0.0115088]
[1767064260394,0.15544,87028.0,87001.0,0.0115088]
[1767064260594,0.15544,87028.0,87000.0,1.91211547]
[1767064260797,0.0001723,87029.0,87000.0,1.91211547]
[1767064260998,0.1669452,87028.0,87000.0,1.91211547]
[1767064261199,0.0115052,87028.0,87000.0,1.91211547]
[1767064261502,0.15544,87027.0,87000.0,1.91211547]
[1767064261898,0.05768,87026.0,87000.0,1.91211547]
[1767064262095,0.0001723,87029.0,87010.0,0.15718786]
[1767064262302,0.05768,87025.0,87003.0,0.0115085]
[1767064262492,0.0001723,87029.0,87010.0,0.15718786]
[1767064262694,0.15544,87028.0,87010.0,0.15718786]
[1767064264006,0.0001723,87029.0,87010.0,0.15718786]
[1767064264303,0.05768,87027.0,87010.0,0.15718786]
[1767064265707,0.05768,87027.0,87006.0,0.05768]
[1767064266409,0.05768,87027.0,87010.0,0.15718786]
[1767064268608,0.05768,87027.0,87006.0,0.05768]
[1767064268804,0.05768,87027.0,87010.0,0.15718786]
[1767064270516,0.0001723,87029.0,87010.0,0.15718786]
[1767064270816,0.15544,87028.0,87010.0,0.16869536]
[1767064273507,0.0001723,87029.0,87010.0,0.16869536]
[1767064273716,0.05768,87027.0,87010.0,0.15718786]
[1767064274712,0.15718786,87020.0,87000.0,1.75492761]
[1767064274915,0.0115072,87013.0,87000.0,1.75492761]
[1767064275118,0.0115075,87011.0,87000.0,1.75492761]
[1767064275610,0.0115068,87016.0,87000.0,1.91211547]
[1767064275821,0.15548,87015.0,87000.0,1.91211547]
[1767064276009,0.15548,87014.0,87000.0,1.91211547]
[1767064276318,0.15718786,87020.0,87000.0,1.91211547]
[1767064276619,0.05772,87019.0,87000.0,1.91211547]
[1767064280519,0.05772,87019.0,87000.0,1.75492761]
[1767064280717,0.0692265,87019.0,87000.0,1.91211547]
[1767064281018,0.15718786,87010.0,87000.0,1.75492761]
[1767064281209,0.21490786,87010.0,87000.0,1.75492761]
[1767064281610,0.05772,87010.0,87000.0,1.75492761]
[1767064281812,0.0692277,87010.0,87000.0,1.75492761]
[1767064282511,0.011508,87007.0,87000.0,0.09193975]
[1767064282708,0.0978,87009.0,87000.0,0.09193975]
[1767064284816,0.0115079,87008.0,87000.0,5e-08]
[1767064285113,0.0115086,87003.0,86983.0,0.05]
[1767064285317,0.0578924,87002.0,86983.0,0.05]
[1767064285924,0.15718786,87000.0,86983.0,0.05]
[1767064286118,0.0978,86999.0,86983.0,0.05]
[1767064289121,0.0001724,87002.0,86983.0,0.05]
[1767064289525,0.15718786,87000.0,86983.0,0.05]
[1767064290025,0.15552,87001.0,86983.0,0.05]
[1767064290225,0.15718786,87000.0,86983.0,0.05]
[1767064291023,0.15552,87001.0,86983.0,0.05]
[1767064291423,0.15552,87000.0,86983.0,0.05]
[1767064291624,0.0001724,87002.0,86983.0,0.05]
[1767064291825,0.15552,87001.0,86983.0,0.05]
[1767064292128,0.05772,87000.0,86983.0,0.05]
[1767064293822,0.05772,87000.0,86983.0,0.0615111]
[1767064294023,0.0001724,87002.0,86983.0,0.0615111]
[1767064294318,0.03272,87001.0,86990.0,0.15718786]
[1767064294522,0.00772,87001.0,86990.0,0.15718786]
[1767064294914,2.4e-06,87002.0,86990.0,0.15718786]
[1767064295223,0.15552,87003.0,86990.0,0.15718786]
[1767064295426,0.15718786,87010.0,86990.0,0.15718786]
[1767064295729,0.15552,87009.0,86990.0,0.15718786]
[1767064296132,0.0001724,87008.0,86991.0,0.0001724]
[1767064296810,0.15552,87007.0,86991.0,0.0001724]
[1767064301237,0.15552,87007.0,86991.0,2.4e-06]
[1767064301433,0.0115081,87006.0,86991.0,2.4e-06]
[1767064304134,0.15552,87007.0,86991.0,2.4e-06]
[1767064304534,0.04592609,87006.0,86991.0,2.4e-06]
[1767064305134,0.15552,87007.0,86991.0,2.4e-06]
[1767064305542,0.0115082,87006.0,86991.0,2.4e-06]
[1767064306537,0.0115086,87003.0,86991.0,2.4e-06]
[1767064307438,0.167028,87007.0,86991.0,2.4e-06]
[1767064308542,0.15552,87007.0,86991.0,2.4e-06]
[1767064310345,0.0578524,87008.0,86997.0,0.15718786]
[1767064310646,0.0578524,87008.0,86991.0,2.4e-06]
[1767064315249,0.0578524,87008.0,86945.0,0.2012]
[1767064315442,0.15721848,87000.0,86948.0,0.00230024]
[1767064315752,0.18231389,86999.0,86954.0,0.0115149]
[1767064315949,0.18231389,86998.0,86955.0,0.01036]
[1767064316152,0.01151,86992.0,86955.0,0.01036]
[1767064316349,0.0001724,86982.0,86956.0,0.12645788]
[1767064316553,0.0001724,86982.0,86956.0,0.11494318]
[1767064317749,0.0001724,86982.0,86957.0,0.05776]
[1767064317750,0.0115116,86980.0,86957.0,0.05776]
[1767064318553,0.0001724,86982.0,86958.0,0.05776]
[1767064318850,0.0001724,86982.0,86954.0,0.05776]
[1767064319842,0.0115123,86975.0,86954.0,0.05776]
[1767064320042,0.0115123,86975.0,86953.0,0.0978]
[1767064320043,0.0115131,86969.0,86948.0,0.00230024]
[1767064320246,0.0115131,86969.0,86948.0,2.4e-07]
[1767064321552,0.0115137,86965.0,86948.0,2.4e-07]
[1767064321948,0.0978,86966.0,86948.0,2.4e-07]
[1767064322154,0.0978,86973.0,86949.0,0.05776]
[1767064322349,0.0978,86973.0,86950.0,0.0978]
[1767064322956,0.0978,86973.0,86948.0,2.4e-07]
[1767064323158,0.0978,86973.0,86949.0,0.15556]
[1767064323759,0.0978,86973.0,86948.0,2.4e-07]
[1767064323959,0.0978,86973.0,86950.0,0.05776]
[1767064324661,0.0978,86973.0,86948.0,2.4e-07]
[1767064324860,0.0978,86973.0,86949.0,0.1556]
[1767064325160,0.0978,86973.0,86950.0,0.1556]
[1767064325353,0.0978,86973.0,86948.0,2.4e-07]
[1767064325667,0.0978,86973.0,86949.0,0.1556]
[1767064325857,0.0115127,86972.0,86949.0,0.1556]
[1767064326563,0.0978,86973.0,86950.0,0.1556]
[1767064328357,0.00010516,86974.0,86951.0,0.1556]
[1767064329156,0.00010516,86974.0,86948.0,2.4e-07]
[1767064329463,0.00010516,86974.0,86949.0,0.1556]
[1767064330569,0.0115125,86973.0,86949.0,0.1556]
[1767064331265,0.0115125,86973.0,86950.0,0.1556]
[1767064331466,0.00010516,86974.0,86950.0,0.1556]
[1767064331868,0.0115126,86973.0,86948.0,2.4e-07]
[1767064332166,0.0115126,86973.0,86951.0,0.05776]
[1767064332368,0.0115126,86973.0,86952.0,0.1556]
[1767064332774,0.0115126,86973.0,86948.0,2.4e-07]
[1767064333071,0.0115126,86973.0,86949.0,0.1556]
[1767064333372,0.0115126,86973.0,86950.0,0.1556]
[1767064335072,0.011513,86969.0,86950.0,0.1556]
[1767064335673,0.0115126,86973.0,86950.0,0.1556]
[1767064336174,0.0115129,86970.0,86950.0,0.1556]
[1767064336670,0.1556,86969.0,86948.0,0.05776024]
[1767064338664,0.1556,86969.0,86950.0,0.0115155]
[1767064339771,0.1556,86969.0,86948.0,0.05776024]
[1767064345076,0.05776,86968.0,86948.0,0.06927594]